fUSD/lending_fUSD_20250630
["ID","MTS","AMOUNT","RATE_DAILY","PERIOD"]
[368681364,1751294792576,-342.72940352,0.00013987,2]
[368681365,1751294792624,-490.0,0.00013987,2]
[368681366,1751294792671,-202.76344986,0.00013987,2]
[368681367,1751294792720,-500.0,0.00013987,2]
[368681368,1751294792771,-527.45887684,0.00013987,2]
[368681369,1751294792820,-490.0,0.00013987,2]
[368681370,1751294792870,-969.29,0.00013987,2]
[368681371,1751294792920,-2100.63,0.00013987,2]
[368681372,1751294792973,-299.70194155,0.00013987,2]
[368681373,1751294793025,-729.5,0.00013987,2]
[368681374,1751294793288,-873.7,0.00013987,2]
[368681375,1751294793342,-490.0,0.00013987,2]
[368681376,1751294793399,-490.0,0.00013987,2]
[368681377,1751294793861,-490.0,0.00013987,2]
[368681378,1751294793919,-1155.27,0.00013987,2]
[368681379,1751294793974,-700.0,0.00013987,2]
[368681380,1751294794029,-906.07,0.00013987,2]
[368681381,1751294794083,-490.0,0.00013987,2]
[368681382,1751294794136,-905.97,0.00013987,2]
[368681383,1751294794188,-546.13,0.00013987,2]
[368681384,1751294794243,-690.97,0.00013987,2]
[368681385,1751294794298,-490.0,0.00013987,2]
[368681386,1751294794354,-490.0,0.00013987,2]
[368681387,1751294794409,-754.91,0.00013987,2]
[368681388,1751294794755,-1146.97,0.00013987,2]
[368681389,1751294794811,-579.08920341,0.00013987,2]
[368681390,1751294794870,-490.0,0.00013987,2]
[368681391,1751294794927,-490.0,0.00013987,2]
[368681392,1751294794985,-768.37,0.00013987,2]
[368681393,1751294795044,-775.57,0.00013987,2]
[368681394,1751294795101,-490.0,0.00013987,2]
[368681395,1751294795154,-490.0,0.00013987,2]
[368681396,1751294795215,-674.3,0.00013987,2]
[368681397,1751294795271,-490.0,0.00013987,2]
[368681398,1751294795324,-511.23,0.00013987,2]
[368681399,1751294795377,-579.25,0.00013987,2]
[368681400,1751294795432,-1265.05159318,0.00013987,2]
[368681401,1751294795707,-2500.33840682,0.00013987,2]
[368681402,1751294795760,-490.0,0.00013987,2]
[368681403,1751294795815,-490.0,0.00013987,2]
[368681404,1751294795870,-490.0,0.00013987,2]
[368681405,1751294795929,-926.19,0.00013987,2]
[368681406,1751294795982,-490.0,0.00013987,2]
[368681407,1751294796034,-573.93,0.00013987,2]
[368681408,1751294796085,-909.0,0.00013987,2]
[368681409,1751294796541,-7760.28799803,0.00013987,2]
[368681410,1751294796825,-4479.42400394,0.00013987,2]
[368681411,1751294796877,-1000.0,0.00013988,2]
[368681412,1751294796929,-1003.05174896,0.00013988,2]
[368681413,1751294796982,-539.65,0.00013988,2]
[368681414,1751294797033,-324.41359832,0.00013988,2]
[368681415,1751294797084,-490.0,0.00013988,2]
[368681416,1751294797131,-895.44,0.00013988,2]
[368681417,1751294797180,-490.0,0.00013988,2]
[368681418,1751294797228,-506.05,0.00013988,2]
[368681419,1751294797277,-53.94129756,0.00013988,2]
[368681420,1751294797514,-436.05870244,0.00013988,2]
[368681421,1751294797561,-490.0,0.00013988,2]
[368681422,1751294797609,-688.9,0.00013988,2]
[368681423,1751294797658,-490.0,0.00013988,2]
[368681424,1751294797709,-490.0,0.00013988,2]
[368681425,1751294798023,-490.0,0.00013988,2]
[368681426,1751294798076,-490.0,0.00013988,2]
[368681427,1751294798128,-709.54,0.00013988,2]
[368681428,1751294798180,-490.0,0.00013988,2]
[368681429,1751294798242,-490.0,0.00013988,2]
[368681430,1751294798295,-660.73,0.00013988,2]
[368681431,1751294798348,-490.0,0.00013988,2]
[368681432,1751294798396,-490.0,0.00013988,2]
[368681433,1751294798441,-637.62542908,0.00013988,2]
[368681434,1751294798486,-490.0,0.00013988,2]
[368681435,1751294798531,-490.0,0.00013988,2]
[368681436,1751294798575,-490.0,0.00013988,2]
[368681437,1751294798620,-490.0,0.00013988,2]
[368681438,1751294798666,-490.0,0.00013988,2]
[368681439,1751294798804,-490.0,0.00013988,2]
[368681440,1751294798852,-640.56,0.00013988,2]
[368681441,1751294798899,-490.0,0.00013988,2]
[368681442,1751294798953,-731.78,0.00013988,2]
[368681443,1751294799006,-862.31,0.00013988,2]
[368681444,1751294799062,-490.0,0.00013988,2]
[368681445,1751294799109,-490.0,0.00013988,2]
[368681446,1751294799155,-490.0,0.00013988,2]
[368681447,1751294799207,-490.0,0.00013988,2]
[368681448,1751294799259,-490.0,0.00013988,2]
[368681449,1751294799309,-490.0,0.00013988,2]
[368681450,1751294799361,-490.0,0.00013988,2]
[368681451,1751294799419,-490.0,0.00013988,2]
[368681452,1751294799475,-490.0,0.00013988,2]
[368681453,1751294799529,-541.07505093,0.00013988,2]
[368681454,1751294799580,-571.85,0.00013988,2]
[368681455,1751294799631,-353.39927849,0.00013988,2]
[368681456,1751294799679,-490.0,0.00013988,2]
[368681457,1751294799728,-348.05134116,0.00013988,2]
[368681458,1751294799829,-141.94865884,0.00013988,2]
[368681459,1751294799877,-516.49902516,0.00013988,2]
[368681460,1751294799929,-431.81660553,0.00013988,2]
[368681461,1751294799983,-490.0,0.00013988,2]
[368681462,1751294800031,-490.0,0.00013988,2]
[368681463,1751294800084,-490.0,0.00013988,2]
[368681464,1751294800134,-591.12,0.00013988,2]
[368681465,1751294800181,-520.18,0.00013988,2]
[368681466,1751294800229,-581.89,0.00013988,2]
[368681467,1751294800278,-518.08,0.00013988,2]
[368681468,1751294800325,-490.0,0.00013988,2]
[368681469,1751294800372,-490.0,0.00013988,2]
[368681470,1751294800421,-490.0,0.00013988,2]
[368681471,1751294800467,-490.0,0.00013988,2]
[368681472,1751294800513,-490.0,0.00013988,2]
[368681473,1751294800560,-490.0,0.00013988,2]
[368681474,1751294800606,-1176.17,0.00013988,2]
[368681475,1751294800652,-490.0,0.00013988,2]
[368681476,1751294800702,-490.0,0.00013988,2]
[368681477,1751294800794,-490.0,0.00013988,2]
[368681478,1751294800848,-954.81,0.00013988,2]
[368681479,1751294800906,-490.0,0.00013988,2]
[368681480,1751294800967,-490.0,0.00013988,2]
[368681481,1751294801019,-490.0,0.00013988,2]
[368681482,1751294801072,-490.0,0.00013988,2]
[368681483,1751294801123,-490.0,0.00013988,2]
[368681484,1751294801182,-587.2,0.00013988,2]
[368681485,1751294801233,-512.17,0.00013988,2]
[368681486,1751294801284,-490.0,0.00013988,2]
[368681487,1751294801332,-490.0,0.00013988,2]
[368681488,1751294801381,-490.0,0.00013988,2]
[368681489,1751294801430,-929.79,0.00013988,2]
[368681490,1751294801478,-490.0,0.00013988,2]
[368681491,1751294801528,-507.23,0.00013988,2]
[368681492,1751294801576,-750.98,0.00013988,2]
[368681493,1751294801627,-490.0,0.00013988,2]
[368681494,1751294801679,-245.64,0.00013988,2]
[368681495,1751294803083,-500.0,0.00013973,2]
[368681496,1751294803140,-244.36,0.00013988,2]
[368681497,1751294803196,-503.44,0.00013988,2]
[368681498,1751294803247,-765.39,0.00013988,2]
[368681499,1751294803298,-706.44,0.00013988,2]
[368681500,1751294803348,-1127.07,0.00013988,2]
[368681501,1751294803400,-490.0,0.00013988,2]
[368681502,1751294803452,-654.21,0.00013988,2]
[368681503,1751294803502,-490.0,0.00013988,2]
[368681504,1751294803553,-490.0,0.00013988,2]
[368681505,1751294803602,-490.0,0.00013988,2]
[368681506,1751294803653,-574.72,0.00013988,2]
[368681507,1751294803705,-1399.07,0.00013988,2]
[368681508,1751294803760,-773.48,0.00013988,2]
[368681509,1751294803816,-641.17,0.00013988,2]
[368681510,1751294804189,-502.24,0.00013988,2]
[368681511,1751294804243,-997.45,0.00013988,2]
[368681512,1751294804297,-490.0,0.00013988,2]
[368681513,1751294804349,-790.18,0.00013988,2]
[368681514,1751294804401,-490.0,0.00013988,2]
[368681515,1751294804459,-490.0,0.00013988,2]
[368681516,1751294804511,-679.46,0.00013988,2]
[368681517,1751294804564,-490.0,0.00013988,2]
[368681518,1751294804616,-490.0,0.00013988,2]
[368681519,1751294804667,-490.0,0.00013988,2]
[368681520,1751294804720,-490.0,0.00013988,2]
[368681521,1751294804772,-1895.2,0.00013988,2]
[368681522,1751294804824,-490.0,0.00013988,2]
[368681523,1751294804876,-490.0,0.00013988,2]
[368681524,1751294804927,-490.0,0.00013988,2]
[368681525,1751294814092,-490.0,0.00013987,2]
[368681526,1751294817338,-490.0,0.00013988,2]
[368681527,1751294817384,-490.0,0.00013988,2]
[368681528,1751294817425,-1176.17,0.00013988,2]
[368681529,1751294817474,-490.0,0.00013988,2]
[368681530,1751294817529,-490.0,0.00013987,2]
[368681531,1751294817565,-264.59142094,0.00013987,2]
[368681532,1751294817601,-490.0,0.00013987,2]
[368681533,1751294817637,-954.81,0.00013987,2]
[368681534,1751294817675,-278.09857906,0.00013987,2]
[368681535,1751294817685,-211.90142094,0.00013988,2]
[368681536,1751294817835,-490.0,0.00013988,2]
[368681537,1751294817897,-490.0,0.00013988,2]
[368681538,1751294817938,-490.0,0.00013988,2]
[368681539,1751294817981,-490.0,0.00013988,2]
[368681540,1751294818020,-587.2,0.00013988,2]
[368681541,1751294818078,-512.17,0.00013988,2]
[368681542,1751294818127,-490.0,0.00013988,2]
[368681543,1751294818165,-490.0,0.00013988,2]
[368681544,1751294818203,-490.0,0.00013988,2]
[368681545,1751294818243,-929.79,0.00013988,2]
[368681546,1751294818281,-490.0,0.00013988,2]
[368681547,1751294818336,-507.23,0.00013988,2]
[368681548,1751294818375,-750.98,0.00013988,2]
[368681549,1751294818416,-490.0,0.00013988,2]
[368681550,1751294818454,-490.0,0.00013988,2]
[368681551,1751294818840,-500.0,0.00013988,2]
[368681552,1751294818919,-244.36,0.00013988,2]
[368681553,1751294819018,-503.44,0.00013988,2]
[368681554,1751294819074,-765.39,0.00013988,2]
[368681555,1751294819110,-706.44,0.00013988,2]
[368681556,1751294819147,-1127.07,0.00013988,2]
[368681557,1751294819235,-490.0,0.00013988,2]
[368681558,1751294819305,-654.21,0.00013988,2]
[368681559,1751294819348,-490.0,0.00013988,2]
[368681560,1751294819491,-490.0,0.00013988,2]
[368681561,1751294819529,-490.0,0.00013988,2]
[368681562,1751294819571,-574.72,0.00013988,2]
[368681563,1751294819608,-1399.07,0.00013988,2]
[368681564,1751294819647,-773.48,0.00013988,2]
[368681565,1751294819692,-641.17,0.00013988,2]
[368681566,1751294819732,-301.3,0.00013988,2]
[368681567,1751294819875,-502.24,0.00013988,2]
[368681568,1751294819924,-997.45,0.00013988,2]
[368681569,1751294819967,-490.0,0.00013988,2]
[368681570,1751294820008,-790.18,0.00013988,2]
[368681571,1751294820054,-490.0,0.00013988,2]
[368681572,1751294820094,-490.0,0.00013988,2]
[368681573,1751294820139,-679.46,0.00013988,2]
[368681574,1751294820179,-490.0,0.00013988,2]
[368681575,1751294820220,-490.0,0.00013988,2]
[368681576,1751294820264,-490.0,0.00013988,2]
[368681577,1751294820303,-490.0,0.00013988,2]
[368681578,1751294820344,-1895.2,0.00013988,2]
[368681579,1751294820385,-490.0,0.00013988,2]
[368681580,1751294820430,-490.0,0.00013988,2]
[368681581,1751294820470,-490.0,0.00013988,2]
[368681582,1751294820511,-470.94,0.00013988,2]
[368681583,1751294824797,-490.0,0.00013988,2]
[368681584,1751294824838,-19020.0,0.00013988,2]
[368681585,1751294824895,-20000.0,0.00013988,2]
[368681586,1751294824952,-20000.0,0.00013988,2]
[368681587,1751294825076,-20000.0,0.00013988,2]
[368681588,1751294825124,-20000.0,0.00013988,2]
[368681589,1751294825296,-20000.0,0.00013988,2]
[368681590,1751294825346,-20000.0,0.00013988,2]
[368681591,1751294825496,-20000.0,0.00013988,2]
[368681592,1751294825629,-20000.0,0.00013988,2]
[368681593,1751294825773,-20000.0,0.00013988,2]
[368681594,1751294826355,-20000.0,0.00013988,2]
[368681595,1751294826419,-20000.0,0.00013988,2]
[368681596,1751294846485,-207.4,0.00013852,2]
[368681597,1751294846534,-290.32454418,0.000139,2]
[368681598,1751294846583,-813.34083776,0.000139,2]
[368681599,1751294846766,-2622.13076388,0.000139,2]
[368681600,1751294846955,-5244.26152776,0.000139,2]
[368681601,1751294847072,-9511.47694448,0.000139,2]
[368681602,1751294847195,-3283.36,0.00013987,2]
[368681603,1751294847255,-300.0,0.00013987,2]
[368681604,1751294847306,-608.59,0.00013987,2]
[368681605,1751294847354,-490.0,0.00013987,2]
[368681606,1751294847403,-531.16,0.00013987,2]
[368681607,1751294847456,-490.0,0.00013987,2]
[368681608,1751294847509,-715.92,0.00013987,2]
[368681609,1751294847556,-490.0,0.00013987,2]
[368681610,1751294847602,-660.19,0.00013987,2]
[368681611,1751294847653,-893.66,0.00013987,2]
[368681612,1751294848080,-8914.98923612,0.00013988,2]
[368681613,1751294848259,-14755.73847224,0.00013988,2]
[368681614,1751294848434,-9511.47694448,0.00013988,2]
[368681615,1751294848473,-977.04611104,0.00013988,2]
[368681616,1751294848531,-3283.36,0.00013988,2]
[368681617,1751294848580,-300.0,0.00013988,2]
[368681618,1751294848623,-608.59,0.00013988,2]
[368681619,1751294848676,-490.0,0.00013988,2]
[368681620,1751294848716,-531.16,0.00013988,2]
[368681621,1751294848766,-490.0,0.00013988,2]
[368681622,1751294848802,-715.92,0.00013988,2]
[368681623,1751294848865,-490.0,0.00013988,2]
[368681624,1751294848915,-660.19,0.00013988,2]
[368681625,1751294848964,-893.66,0.00013988,2]
[368681626,1751294849011,-3074.24,0.00013988,2]
[368681627,1751294849094,-20000.0,0.00013988,2]
[368681628,1751294849335,-20000.0,0.00013988,2]
[368681629,1751294849674,-20000.0,0.00013988,2]
[368681630,1751294849879,-20000.0,0.00013988,2]
[368681631,1751294850013,-20000.0,0.00013988,2]
[368681632,1751294850174,-20000.0,0.00013988,2]
[368681633,1751294850255,-20000.0,0.00013988,2]
[368681634,1751294850332,-20000.0,0.00013988,2]
[368681635,1751294850505,-1387.2,0.00013987,2]
[368681636,1751294850514,-18612.8,0.00013988,2]
[368681637,1751294850633,-20000.0,0.00013988,2]
[368681638,1751294850997,-20000.0,0.00013988,2]
[368681639,1751294851101,-20000.0,0.00013988,2]
[368681640,1751294851236,-20000.0,0.00013988,2]
[368681641,1751294851274,-20000.0,0.00013988,2]
[368681642,1751294851321,-20000.0,0.00013988,2]
[368681643,1751294851487,-20000.0,0.00013988,2]
[368681644,1751294851593,-20000.0,0.00013988,2]
[368681645,1751294851736,-20000.0,0.00013988,2]
[368681646,1751294851792,-20000.0,0.00013988,2]
[368681647,1751294851843,-20000.0,0.00013988,2]
[368681648,1751294852017,-20000.0,0.00013988,2]
[368681650,1751294852118,-20000.0,0.00013988,2]
[368681651,1751294852160,-20000.0,0.00013988,2]
[368681652,1751294852232,-1760.2682493,0.00013981,2]
[368681653,1751294852241,-18239.7317507,0.00013988,2]
[368681654,1751294852367,-20000.0,0.00013988,2]
[368681655,1751294964452,-5000.0,0.00013889,2]
[368681656,1751294964501,-444.26672564,0.000139,2]
[368681657,1751294964553,-165.83286365,0.000139,2]
[368681658,1751294964602,-165.83286365,0.000139,2]
[368681659,1751294964648,-290.32454418,0.000139,2]
[368681660,1751294965007,-7200.945753,0.00013981,2]
[368681661,1751294965098,-666.54025276,0.00013981,2]
[368681662,1751294965186,-4931.56824124,0.00013981,2]
[368681663,1751294965284,-7867.48600576,0.00013981,2]
[368681664,1751294965386,-4931.56824124,0.00013981,2]
[368681665,1751294965431,-10136.86351752,0.00013981,2]
[368681666,1751294965483,-20000.0,0.00013981,2]
[368681667,1751294965540,-20000.0,0.00013981,2]
[368681668,1751294965615,-7011.49693122,0.00013981,2]
[368681669,1751294965672,-5977.00613756,0.00013981,2]
[368681670,1751294965681,-833.02,0.00013987,2]
[368681671,1751294965690,-490.0,0.00013987,2]
[368681672,1751294965699,-490.0,0.00013987,2]
[368681673,1751294965708,-490.0,0.00013987,2]
[368681674,1751294965717,-589.92819774,0.00013987,2]
[368681675,1751294965728,-490.0,0.00013987,2]
[368681676,1751294965737,-490.0,0.00013987,2]
[368681677,1751294965747,-490.0,0.00013987,2]
[368681678,1751294965756,-490.0,0.00013987,2]
[368681679,1751294965765,-1396.11,0.00013987,2]
[368681680,1751294965775,-490.0,0.00013987,2]
[368681681,1751294965784,-272.43873348,0.00013987,2]
[368681682,1751294965838,-217.56126652,0.00013987,2]
[368681683,1751294965847,-490.0,0.00013987,2]
[368681684,1751294965857,-490.0,0.00013987,2]
[368681685,1751294965867,-490.0,0.00013987,2]
[368681686,1751294965876,-490.0,0.00013987,2]
[368681687,1751294965886,-846.99,0.00013987,2]
[368681688,1751294965895,-645.65,0.00013987,2]
[368681689,1751294965905,-1137.96,0.00013987,2]
[368681690,1751294965914,-928.9,0.00013987,2]
[368681691,1751294965924,-2133.66,0.00013987,2]
[368681692,1751294965934,-538.17,0.00013987,2]
[368681693,1751294965943,-581.99,0.00013987,2]
[368681694,1751294965953,-490.0,0.00013987,2]
[368681695,1751294965963,-490.0,0.00013987,2]
[368681696,1751294965973,-498.51,0.00013987,2]
[368681697,1751294965982,-880.51,0.00013987,2]
[368681698,1751294965992,-1638.60180226,0.00013987,2]
[368681699,1751294966065,-485.96819774,0.00013987,2]
[368681700,1751294966116,-490.0,0.00013987,2]
[368681701,1751294966165,-1624.1,0.00013987,2]
[368681702,1751294966213,-490.0,0.00013987,2]
[368681703,1751294966260,-520.0,0.00013987,2]
[368681704,1751294966307,-490.0,0.00013987,2]
[368681705,1751294966366,-738.08,0.00013987,2]
[368681706,1751294966414,-490.0,0.00013987,2]
[368681707,1751294966462,-1273.74,0.00013987,2]
[368681708,1751294966508,-490.0,0.00013987,2]
[368681709,1751294966554,-490.0,0.00013987,2]
[368681710,1751294966603,-566.49,0.00013987,2]
[368681711,1751294966650,-490.0,0.00013987,2]
[368681712,1751294966699,-557.7,0.00013987,2]
[368681713,1751294966751,-647.13360452,0.00013987,2]
[368681714,1751294967321,-313.57639548,0.00013987,2]
[368681715,1751294967371,-964.93,0.00013987,2]
[368681716,1751294967423,-490.0,0.00013987,2]
[368681717,1751294967475,-754.11,0.00013987,2]
[368681718,1751294967523,-490.0,0.00013987,2]
[368681719,1751294967569,-353.37123847,0.00013987,2]
[368681720,1751294967616,-763.21,0.00013987,2]
[368681721,1751294967669,-490.0,0.00013987,2]
[368681722,1751294967723,-490.0,0.00013987,2]
[368681723,1751294967772,-490.0,0.00013987,2]
[368681724,1751294967820,-1218.28,0.00013987,2]
[368681725,1751294967873,-490.0,0.00013987,2]
[368681726,1751294967921,-490.0,0.00013988,2]
[368681727,1751294967973,-490.0,0.00013988,2]
[368681728,1751294968027,-490.0,0.00013988,2]
[368681729,1751294968086,-552.89,0.00013988,2]
[368681730,1751294968134,-490.0,0.00013988,2]
[368681731,1751294968342,-740.04,0.00013988,2]
[368681732,1751294968392,-490.0,0.00013988,2]
[368681733,1751294968441,-746.11,0.00013988,2]
[368681734,1751294968487,-522.44,0.00013988,2]
[368681735,1751294968533,-490.0,0.00013988,2]
[368681736,1751294968577,-490.0,0.00013988,2]
[368681737,1751294968621,-731.47,0.00013988,2]
[368681738,1751294968667,-490.0,0.00013988,2]
[368681739,1751294968714,-490.0,0.00013988,2]
[368681740,1751294968762,-490.0,0.00013988,2]
[368681741,1751294968813,-490.0,0.00013988,2]
[368681742,1751294968862,-490.0,0.00013988,2]
[368681743,1751294968914,-490.0,0.00013988,2]
[368681744,1751294968966,-490.0,0.00013988,2]
[368681745,1751294969016,-490.0,0.00013988,2]
[368681746,1751294969066,-490.0,0.00013988,2]
[368681747,1751294969113,-490.0,0.00013988,2]
[368681748,1751294969159,-490.0,0.00013988,2]
[368681749,1751294969205,-274.62093858,0.00013988,2]
[368681750,1751294969458,-490.0,0.00013988,2]
[368681751,1751294969504,-490.0,0.00013988,2]
[368681752,1751294969549,-490.0,0.00013988,2]
[368681753,1751294969593,-490.0,0.00013988,2]
[368681754,1751294969637,-490.0,0.00013988,2]
[368681755,1751294969683,-785.6,0.00013988,2]
[368681756,1751294969729,-490.0,0.00013988,2]
[368681757,1751294969777,-490.0,0.00013988,2]
[368681758,1751294969829,-1302.73,0.00013988,2]
[368681759,1751294969875,-490.0,0.00013988,2]
[368681760,1751294969924,-490.0,0.00013988,2]
[368681761,1751294969973,-444.7475078,0.00013988,2]
[368681762,1751294970023,-490.0,0.00013988,2]
[368681763,1751294970073,-490.0,0.00013988,2]
[368681764,1751294970118,-490.0,0.00013988,2]
[368681765,1751294970163,-1203.74,0.00013988,2]
[368681766,1751294970414,-992.67,0.00013988,2]
[368681767,1751294970457,-490.0,0.00013988,2]
[368681768,1751294970503,-739.25,0.00013988,2]
[368681769,1751294970549,-1093.47,0.00013988,2]
[368681770,1751294970594,-881.37,0.00013988,2]
[368681771,1751294970639,-490.0,0.00013988,2]
[368681772,1751294970683,-490.0,0.00013988,2]
[368681773,1751294970728,-490.0,0.00013988,2]
[368681774,1751294970776,-490.0,0.00013988,2]
[368681775,1751294970824,-490.0,0.00013988,2]
[368681776,1751294970873,-490.0,0.00013988,2]
[368681777,1751294970922,-490.0,0.00013988,2]
[368681778,1751294970972,-490.0,0.00013988,2]
[368681779,1751294971020,-610.0,0.00013988,2]
[368681780,1751294971065,-490.0,0.00013988,2]
[368681781,1751294971110,-490.0,0.00013988,2]
[368681782,1751294971596,-997.55,0.00013988,2]
[368681783,1751294971643,-490.0,0.00013988,2]
[368681784,1751294971693,-490.0,0.00013988,2]
[368681785,1751294971744,-1691.12,0.00013988,2]
[368681786,1751294971792,-1119.09,0.00013988,2]
[368681787,1751294971841,-490.0,0.00013988,2]
[368681788,1751294971889,-572.35,0.00013988,2]
[368681789,1751294971936,-1248.19,0.00013988,2]
[368681790,1751294971985,-490.0,0.00013988,2]
[368681791,1751294972032,-500.0,0.00013988,2]
[368681792,1751294972075,-490.0,0.00013988,2]
[368681793,1751294972122,-490.0,0.00013988,2]
[368681794,1751294972166,-490.0,0.00013988,2]
[368681795,1751294972212,-393.4,0.00013988,2]
[368681796,1751294972379,-96.6,0.00013988,2]
[368681797,1751294972427,-1332.78,0.00013988,2]
[368681798,1751294972475,-490.0,0.00013988,2]
[368681799,1751294972522,-490.0,0.00013988,2]
[368681800,1751294972570,-1046.26,0.00013988,2]
[368681801,1751294972619,-490.0,0.00013988,2]
[368681802,1751294972667,-503.39,0.00013988,2]
[368681803,1751294972719,-490.0,0.00013988,2]
[368681804,1751294972769,-1260.79,0.00013988,2]
[368681805,1751294972819,-668.81,0.00013988,2]
[368681806,1751294972867,-925.18,0.00013988,2]
[368681807,1751294972916,-490.0,0.00013988,2]
[368681808,1751294972964,-490.0,0.00013988,2]
[368681809,1751294973014,-520.78,0.00013988,2]
[368681810,1751294973065,-146.55,0.00013988,2]
[368681811,1751294973161,-1117.72,0.00013988,2]
[368681812,1751294973211,-554.09,0.00013988,2]
[368681813,1751294973263,-576.52,0.00013988,2]
[368681814,1751294973313,-490.0,0.00013988,2]
[368681815,1751294973366,-490.0,0.00013988,2]
[368681816,1751294973418,-490.0,0.00013988,2]
[368681817,1751294973468,-490.0,0.00013988,2]
[368681818,1751294973517,-783.88,0.00013988,2]
[368681819,1751294973567,-490.0,0.00013988,2]
[368681820,1751294973618,-490.0,0.00013988,2]
[368681821,1751294973665,-1711.07,0.00013988,2]
[368681822,1751294973714,-259.76387593,0.00013988,2]
[368681823,1751294973764,-490.0,0.00013988,2]
[368681824,1751294973817,-490.0,0.00013988,2]
[368681825,1751294973869,-490.0,0.00013988,2]
[368681826,1751294974658,-1400.35,0.00013988,2]
[368681827,1751294974986,-721.09,0.00013988,2]
[368681828,1751294975036,-490.0,0.00013988,2]
[368681829,1751294975084,-1833.67,0.00013988,2]
[368681830,1751294975134,-816.89,0.00013988,2]
[368681831,1751294975182,-490.0,0.00013988,2]
[368681832,1751294975230,-500.0,0.00013988,2]
[368681833,1751294975282,-490.0,0.00013988,2]
[368681834,1751294975334,-490.0,0.00013988,2]
[368681835,1751294975386,-490.0,0.00013988,2]
[368681836,1751294975435,-490.0,0.00013988,2]
[368681837,1751294975485,-1169.43,0.00013988,2]
[368681838,1751294975532,-422.1,0.00013988,2]
[368681839,1751294975760,-392.94,0.00013988,2]
[368681840,1751294975811,-490.0,0.00013988,2]
[368681841,1751294975864,-510.38571339,0.00013988,2]
[368681842,1751294975915,-1699.42,0.00013988,2]
[368681843,1751294975966,-614.31,0.00013988,2]
[368681844,1751294976017,-490.0,0.00013988,2]
[368681845,1751294976064,-490.0,0.00013988,2]
[368681846,1751294976114,-500.0,0.00013988,2]
[368681847,1751294976164,-776.11,0.00013988,2]
[368681848,1751294976214,-490.0,0.00013988,2]
[368681849,1751294976263,-831.85,0.00013988,2]
[368681850,1751294976314,-1373.73,0.00013988,2]
[368681851,1751294976366,-490.0,0.00013988,2]
[368681852,1751294976417,-532.65857322,0.00013988,2]
[368681853,1751294976713,-637.19142678,0.00013988,2]
[368681854,1751294976764,-490.0,0.00013988,2]
[368681855,1751294976818,-490.0,0.00013988,2]
[368681856,1751294976872,-490.0,0.00013988,2]
[368681857,1751294976925,-1219.93,0.00013988,2]
[368681858,1751294976979,-491.65203749,0.00013988,2]
[368681859,1751294977034,-591.03,0.00013988,2]
[368681860,1751294977086,-1020.91,0.00013988,2]
[368681861,1751294977139,-490.0,0.00013988,2]
[368681862,1751294977192,-1664.97,0.00013988,2]
[368681863,1751294977246,-1062.29,0.00013988,2]
[368681864,1751294977302,-490.0,0.00013988,2]